bitfinex/quotes_SOLUSD_20250601
["timestamp","ask_amount","ask_price","bid_price","bid_amount"]
[1748750040736,14.68740769,154.79,154.76,26.0]
[1748750041162,14.68740769,154.8,154.76,26.0]
[1748750041340,14.68740769,154.8,154.76,40.68740769]
[1748750042658,21.14739874,154.8,154.76,40.68740769]
[1748750043185,14.68740769,154.79,154.76,26.0]
[1748750043339,14.68740769,154.77,154.7,18.64964886]
[1748750043540,14.68740769,154.76,154.72,40.68740769]
[1748750043949,7.8111,154.79,154.73,14.68740769]
[1748750043950,6.46078304,154.78,154.73,14.68740769]
[1748750044266,22.7644301,154.79,154.74,14.68740769]
[1748750044469,16.76003954,154.8,154.75,14.68740769]
[1748750044764,31.44744723,154.8,154.75,14.68740769]
[1748750046465,14.68740769,154.81,154.77,14.68740769]
[1748750046877,22.76309996,154.82,154.77,14.68740769]
[1748750047371,22.76309996,154.82,154.78,14.68740769]
[1748750049958,22.76309996,154.82,154.77,14.68740769]
[1748750051070,22.76309996,154.82,154.77,21.14860374]
[1748750051860,14.68740769,154.81,154.77,21.14860374]
[1748750054271,10.3,154.84,154.77,21.14860374]
[1748750054272,14.68740769,154.84,154.8,14.68740769]
[1748750055269,14.68740769,154.84,154.8,21.14716598]
[1748750057086,21.14573127,154.84,154.78,26.0]
[1748750057382,14.68740769,154.83,154.79,14.68740769]
[1748750059290,14.68740769,154.83,154.79,21.14771787]
[1748750059675,21.14573127,154.84,154.79,21.14771787]
[1748750060486,14.68740769,154.84,154.79,21.14771787]
[1748750061588,14.68740769,154.84,154.8,14.68740769]
[1748750061978,21.14576731,154.84,154.8,14.68740769]
[1748750062182,21.14576731,154.84,154.79,6.46031018]
[1748750062183,21.14576731,154.84,154.79,21.14771787]
[1748750064194,14.68740769,154.86,154.82,14.68740769]
[1748750064586,14.68740769,154.86,154.81,14.68740769]
[1748750065083,14.68740769,154.85,154.79,62.23122432]
[1748750065278,14.68740769,154.84,154.8,14.68740769]
[1748750066078,6.45799941,154.85,154.79,16.76031018]
[1748750066275,14.68740769,154.83,154.79,6.46031018]
[1748750067391,21.14616841,154.83,154.78,136.74812571]
[1748750067593,21.14616841,154.83,154.78,47.14812571]
[1748750068777,6.45876072,154.83,154.78,47.14812571]
[1748750068984,21.14616841,154.83,154.78,47.14812571]
[1748750070505,14.68740769,154.84,154.82,26.0]
[1748750072108,21.14527013,154.85,154.82,26.0]
[1748750072408,14.68740769,154.85,154.82,26.0]
[1748750072994,14.68740769,154.85,154.82,32.45908194]
[1748750073201,14.68740769,154.85,154.82,26.0]
[1748750074812,14.68740769,154.83,154.78,14.68740769]
[1748750074984,14.68740769,154.84,154.79,40.68740769]
[1748750077198,14.68740769,154.84,154.79,47.14753033]
[1748750077393,21.14574234,154.84,154.79,47.14753033]
[1748750081324,6.45744543,154.86,154.79,47.14753033]
[1748750081626,14.68740769,154.84,154.79,47.14753033]
[1748750082703,9.39498921,154.84,154.79,41.85511185]
[1748750083224,6.45812973,154.85,154.79,41.85511185]
[1748750083431,9.39498921,154.84,154.8,9.39498921]
[1748750083931,9.39498921,154.84,154.79,41.85511185]
[1748750085222,15.85330913,154.84,154.79,41.85511185]
[1748750085528,9.39498921,154.83,154.79,32.46012264]
[1748750087362,9.39498921,154.81,154.76,109.29498921]
[1748750087510,9.39498921,154.81,154.77,26.0]
[1748750088635,14.68578462,154.81,154.77,26.0]
[1748750089937,21.14538085,154.81,154.77,26.0]
[1748750090831,21.14538085,154.81,154.76,31.44714969]
[1748750090832,14.68578462,154.78,154.76,26.0]
[1748750091239,14.68578462,154.78,154.73,104.28578462]
[1748750091442,14.68578462,154.78,154.76,26.0]
[1748750093548,21.14637735,154.79,154.76,26.0]
[1748750093735,14.68578462,154.78,154.76,26.0]
[1748750094729,21.14668984,154.78,154.76,26.0]
[1748750095143,14.68578462,154.8,154.77,26.0]
[1748750099426,21.14557414,154.81,154.77,26.0]
[1748750099821,21.14557414,154.81,154.76,21.14725651]
[1748750099822,6.45901332,154.83,154.79,26.0]
[1748750100042,1.6659,154.86,154.79,26.0]
[1748750100249,14.68578462,154.83,154.79,26.0]
[1748750101043,14.68578462,154.83,154.79,32.46019365]
[1748750101450,14.68578462,154.82,154.79,26.0]
[1748750102386,14.68578462,154.81,154.79,26.0]
[1748750102962,14.68578462,154.81,154.78,26.0]
[1748750103663,14.68578462,154.8,154.78,26.0]
[1748750104954,14.68578462,154.82,154.78,32.46050896]
[1748750107276,14.68578462,154.81,154.78,26.0]
[1748750108981,14.68578462,154.8,154.78,26.0]
[1748750112755,9.39947675,154.8,154.78,26.0]
[1748750113792,9.39947675,154.79,154.74,9.39947675]
[1748750114168,9.39947675,154.79,154.75,26.0]
[1748750114375,9.39947675,154.81,154.76,35.39947675]
[1748750114984,9.39947675,154.8,154.76,35.39947675]
[1748750115187,9.39947675,154.8,154.76,26.0]
[1748750115689,9.39947675,154.81,154.79,26.0]
[1748750116580,15.85910129,154.81,154.79,26.0]
[1748750116777,21.14600335,154.81,154.79,26.0]
[1748750119186,14.68637881,154.81,154.79,26.0]
[1748750120388,46.05884421,154.83,154.79,26.0]
[1748750120583,14.68637881,154.81,154.79,26.0]
[1748750122610,14.68637881,154.82,154.79,26.0]
[1748750127103,6.45911848,154.82,154.77,32.46103355]
[1748750128195,60.74525137,154.83,154.77,32.46103355]
[1748750128399,14.68637881,154.82,154.77,32.46103355]
[1748750129204,21.14562155,154.82,154.77,32.46103355]
[1748750129602,14.68637881,154.8,154.75,6.46203554]
[1748750129789,14.68637881,154.81,154.75,21.14841435]
[1748750129981,14.68637881,154.81,154.76,26.0]
[1748750130388,21.14562155,154.82,154.77,14.68637881]
[1748750132794,21.14562155,154.82,154.76,21.14793513]
[1748750135627,14.68637881,154.82,154.76,21.14793513]
[1748750135987,21.14564679,154.82,154.76,21.14793513]
[1748750137844,21.14564679,154.82,154.76,6.46155632]
[1748750138644,15.85822926,154.82,154.76,6.46155632]
[1748750140743,6.45926798,154.82,154.76,6.46155632]
[1748750140921,15.85822926,154.82,154.76,6.46155632]
[1748750142254,9.39896128,154.81,154.75,32.46186295]
[1748750142548,9.39896128,154.8,154.75,32.46186295]
[1748750143043,9.39896128,154.81,154.75,32.46186295]
[1748750143556,15.85850829,154.81,154.75,41.86082423]
[1748750146155,16.00023665,154.82,154.75,41.86082423]
[1748750146955,9.39896128,154.81,154.75,32.46186295]
[1748750147158,15.85853177,154.81,154.75,41.86082423]
[1748750148765,9.39896128,154.81,154.75,41.86082423]
[1748750149235,6.45928527,154.82,154.76,9.39896128]
[1748750149549,6.45885601,154.83,154.77,9.39896128]
[1748750149754,15.85781729,154.83,154.78,9.39896128]
[1748750150341,9.39896128,154.82,154.77,15.85982315]
[1748750150548,9.39896128,154.82,154.78,9.39896128]
[1748750153050,9.39896128,154.82,154.77,6.46086187]
[1748750153253,9.39896128,154.82,154.77,15.85982315]
[1748750156976,9.39896128,154.81,154.75,26.0]
[1748750157145,9.39896128,154.79,154.74,15.86116257]
[1748750157347,9.39896128,154.79,154.75,26.0]
[1748750157669,9.39896128,154.78,154.73,15.86177565]
[1748750158246,9.39896128,154.78,154.73,41.86177565]
[1748750158803,9.39896128,154.77,154.73,41.86177565]
[1748750158982,9.39896128,154.77,154.73,32.46281437]
[1748750159264,9.39896128,154.77,154.73,41.86177565]
[1748750159845,9.39896128,154.76,154.73,26.0]
[1748750160048,9.39896128,154.76,154.72,10.3]
[1748750160349,9.39896128,154.76,154.71,35.39896128]
[1748750161183,15.86060602,154.76,154.71,41.86256396]
[1748750161848,15.86060602,154.76,154.71,35.39896128]
[1748750162054,9.39896128,154.75,154.71,26.0]
[1748750162270,9.39896128,154.75,154.71,35.39896128]
[1748750162455,15.86060602,154.76,154.71,35.39896128]
[1748750163582,15.86060602,154.76,154.71,41.86265375]
[1748750164593,15.86060602,154.76,154.71,35.39896128]
[1748750167087,9.39896128,154.75,154.71,35.39896128]
[1748750169291,6.46120049,154.77,154.71,26.0]
[1748750169292,9.39896128,154.73,154.71,26.0]
[1748750169472,9.39896128,154.72,154.71,26.0]
[1748750169673,0.14216157,154.76,154.71,26.0]
[1748750169983,9.39896128,154.73,154.71,26.0]
[1748750170190,9.39896128,154.74,154.71,26.0]
[1748750171398,9.39896128,154.73,154.71,26.0]
[1748750172291,9.39896128,154.72,154.71,26.0]
[1748750172475,9.39896128,154.73,154.71,26.0]
[1748750177499,9.39896128,154.74,154.71,26.0]
[1748750179269,9.39896128,154.73,154.68,26.123773]
[1748750179470,9.39896128,154.72,154.68,19.65896128]
[1748750179977,9.39896128,154.72,154.68,45.65896128]
[1748750180192,9.39896128,154.71,154.68,26.0]
[1748750182181,6.46302458,154.73,154.68,41.86381335]
[1748750182387,9.39896128,154.72,154.68,41.86381335]
[1748750183212,6.46203554,154.75,154.68,41.86381335]
[1748750183382,9.39896128,154.72,154.68,41.86381335]
[1748750185304,9.39896128,154.72,154.68,32.46485207]
[1748750186810,15.86227012,154.72,154.68,26.0]
[1748750187180,9.39896128,154.71,154.68,26.0]
[1748750189388,9.39896128,154.71,154.66,41.86462093]
[1748750189389,9.39896128,154.7,154.66,41.86462093]
[1748750190419,15.86313317,154.7,154.66,35.39896128]
[1748750191112,15.86313317,154.7,154.66,26.0]
[1748750191280,9.39896128,154.7,154.66,26.0]
[1748750191482,6.4638581,154.71,154.66,26.0]
[1748750191783,9.39896128,154.7,154.66,26.0]
[1748750191984,6.4638581,154.71,154.66,26.0]
[1748750192291,9.39896128,154.7,154.66,26.0]
[1748750193698,15.8632102,154.7,154.66,26.0]
[1748750194594,9.39896128,154.69,154.66,26.0]
[1748750195287,15.8632102,154.7,154.66,26.0]
[1748750197213,15.8632102,154.7,154.66,35.39896128]
[1748750199611,15.8632102,154.7,154.66,26.0]
[1748750199813,15.8632102,154.7,154.66,35.39896128]
[1748750203109,15.8632102,154.7,154.66,26.0]
[1748750207219,9.39896128,154.72,154.68,9.39896128]
[1748750209109,15.8622787,154.72,154.67,15.86416717]
[1748750214118,9.39896128,154.71,154.67,15.86416717]
[1748750215325,9.39896128,154.71,154.67,9.39896128]
[1748750215707,9.39896128,154.71,154.66,32.46562565]
[1748750215708,9.39896128,154.7,154.66,41.86458693]
[1748750217111,15.86320609,154.7,154.66,35.39896128]
[1748750217508,15.86320609,154.7,154.66,26.0]
[1748750217509,9.39896128,154.69,154.66,26.0]
[1748750220440,15.86355852,154.69,154.66,26.0]
[1748750221534,9.39896128,154.69,154.66,26.0]
[1748750221836,15.86317945,154.7,154.66,26.0]
[1748750226363,6.46374631,154.71,154.66,41.86462865]
[1748750226637,15.86270759,154.71,154.67,9.39896128]
[1748750227339,15.86270759,154.71,154.66,41.86462865]
[1748750228437,9.39896128,154.71,154.66,41.86462865]
[1748750229542,15.86278344,154.71,154.66,41.86462865]
[1748750237733,15.86268349,154.71,154.66,41.86462865]
[1748750239458,9.39896128,154.72,154.68,9.39896128]
[1748750239632,9.39896128,154.72,154.66,32.46566737]
[1748750239834,9.39896128,154.72,154.68,9.39896128]
[1748750240046,9.39896128,154.72,154.67,9.39896128]
[1748750240561,9.39896128,154.72,154.67,15.86422587]
[1748750241054,9.39896128,154.72,154.67,6.46526459]
[1748750241260,9.39896128,154.72,154.67,15.86422587]
[1748750242233,15.86234964,154.72,154.67,15.86422587]
[1748750242663,9.39896128,154.72,154.67,15.86422587]
[1748750242861,15.86225424,154.72,154.67,15.86422587]
[1748750243650,15.86225424,154.72,154.67,9.39896128]
[1748750243968,9.39896128,154.71,154.67,9.39896128]
[1748750244346,6.46389379,154.71,154.67,9.39896128]
[1748750244672,6.74677628,154.74,154.67,9.39896128]
[1748750244840,9.39896128,154.72,154.67,9.39896128]
[1748750246055,6.46370628,154.71,154.67,9.39896128]
[1748750246253,9.39896128,154.73,154.68,9.39896128]
[1748750247248,9.39896128,154.72,154.68,9.39896128]
[1748750248160,9.39896128,154.72,154.68,15.86387445]
[1748750249159,9.39896128,154.72,154.68,9.39896128]
[1748750249160,15.86232271,154.72,154.68,9.39896128]
[1748750249355,9.39896128,154.71,154.67,15.86426138]
[1748750251344,6.46245314,154.74,154.68,9.39896128]
[1748750251546,9.39896128,154.72,154.67,6.4653001]
[1748750251765,9.39896128,154.72,154.67,15.86426138]
[1748750253973,9.39896128,154.71,154.66,9.39896128]
[1748750254156,9.39896128,154.7,154.66,9.39896128]
[1748750254356,9.39896128,154.71,154.66,35.39896128]
[1748750254861,13.11708347,154.71,154.66,35.39896128]
[1748750255174,3.71812219,154.71,154.7,26.0]
[1748750256269,15.86192419,154.73,154.7,26.0]
[1748750256970,9.39896128,154.72,154.7,26.0]
[1748750259646,15.86236387,154.72,154.7,26.0]
[1748750262382,9.39896128,154.72,154.7,26.0]
[1748750266057,15.86196293,154.73,154.7,26.0]
[1748750268177,46.00245314,154.74,154.7,26.0]
[1748750268365,9.39896128,154.73,154.7,26.0]
[1748750270866,18.30540598,154.75,154.7,41.86292981]
[1748750271187,27.70436726,154.75,154.7,41.86292981]
[1748750272385,9.39896128,154.74,154.7,41.86292981]
[1748750274696,9.39896128,154.74,154.7,32.46396853]
[1748750277993,9.39896128,154.74,154.7,41.86292981]
[1748750286207,17.44429706,154.75,154.7,41.86292981]
[1748750289206,24.2988717,154.78,154.72,9.39896128]
[1748750289393,18.1385717,154.78,154.74,9.39896128]
[1748750289590,27.53753298,154.78,154.74,9.39896128]
[1748750290093,33.99867672,154.78,154.74,9.39896128]
[1748750290305,9.39896128,154.77,154.73,9.39896128]
[1748750290510,15.8602515,154.77,154.73,9.39896128]
[1748750290712,9.39896128,154.76,154.71,15.8625183]
[1748750291203,9.39896128,154.74,154.69,9.39896128]
[1748750291908,9.39896128,154.74,154.69,35.39896128]
[1748750292898,15.86164713,154.74,154.69,35.39896128]
[1748750295590,9.39896128,154.73,154.69,26.0]
[1748750297914,15.862016,154.73,154.69,35.39896128]
[1748750298304,6.46305472,154.73,154.7,9.39896128]
[1748750298703,9.39896128,154.74,154.7,9.39896128]
[1748750298704,15.86150678,154.74,154.7,9.39896128]
[1748750299497,6.4625455,154.74,154.7,9.39896128]
[1748750303025,6.46203554,154.75,154.7,9.39896128]
[1748750303322,15.86099682,154.75,154.7,9.39896128]
[1748750304620,19.57441164,154.75,154.7,9.39896128]
[1748750305712,10.17545036,154.75,154.71,9.39896128]
[1748750306923,6.46203554,154.75,154.71,9.39896128]
[1748750312908,15.86099682,154.75,154.71,9.39896128]
[1748750313823,9.39896128,154.74,154.7,9.39896128]
[1748750314023,9.39896128,154.74,154.69,35.39896128]
[1748750315837,6.4628708,154.73,154.69,35.39896128]
[1748750316329,15.86183208,154.73,154.69,26.0]
[1748750316533,9.39896128,154.72,154.69,26.0]
[1748750316737,15.86183208,154.73,154.69,26.0]
[1748750319335,15.86183208,154.73,154.69,35.39896128]
[1748750321921,6.4628708,154.73,154.69,35.39896128]
[1748750322323,6.46245314,154.74,154.69,35.39896128]
[1748750322529,15.86141442,154.74,154.69,35.39896128]
[1748750325827,6.46245314,154.74,154.69,35.39896128]
[1748750326038,15.86141442,154.74,154.69,35.39896128]
[1748750329352,15.86141442,154.74,154.68,26.0]
[1748750329353,9.39896128,154.73,154.68,26.0]
[1748750329528,9.39896128,154.72,154.68,35.39896128]
[1748750330545,6.46370628,154.71,154.68,35.39896128]
[1748750331740,6.46370628,154.71,154.66,26.0]
[1748750332049,6.46370628,154.71,154.67,9.39896128]
[1748750332619,9.39896128,154.71,154.67,9.39896128]
[1748750334353,9.39896128,154.71,154.67,15.86418882]
[1748750334664,9.39896128,154.72,154.68,15.86391045]
[1748750336335,9.39896128,154.76,154.71,9.39896128]
[1748750336934,9.39896128,154.76,154.68,6.46494917]
[1748750337138,9.39896128,154.75,154.71,9.39896128]
[1748750337337,9.39896128,154.75,154.71,15.86257898]
[1748750339351,9.39896128,154.75,154.71,6.4636177]
[1748750339853,9.39896128,154.75,154.7,15.86291995]
[1748750340028,15.86100556,154.75,154.7,15.86291995]
[1748750341054,9.39896128,154.74,154.69,15.86350326]
[1748750343048,9.39896128,154.74,154.7,15.86303927]
[1748750345258,6.74594112,154.76,154.7,15.86303927]
[1748750345442,9.39896128,154.74,154.7,15.86303927]
[1748750346558,9.39896128,154.74,154.69,6.46454198]
[1748750346761,9.39896128,154.73,154.69,15.86350326]
[1748750347370,9.39896128,154.73,154.68,41.86379509]
[1748750348943,9.39896128,154.73,154.69,9.39896128]
[1748750349551,9.39896128,154.73,154.69,15.86345915]
[1748750350151,15.86165732,154.74,154.69,15.86345915]
[1748750351634,9.39896128,154.73,154.69,15.86345915]
[1748750353863,15.86184006,154.73,154.69,9.39896128]
[1748750354064,9.39896128,154.72,154.68,26.0]
[1748750354464,9.39896128,154.72,154.67,15.86428444]
[1748750355563,6.46339226,154.72,154.67,15.86428444]
[1748750355860,9.39896128,154.73,154.68,9.39896128]
[1748750357041,15.86197868,154.73,154.68,9.39896128]
[1748750359238,15.86197868,154.73,154.68,15.86389439]
[1748750364062,0.28432314,154.74,154.68,15.86389439]
[1748750364267,9.39896128,154.73,154.68,15.86389439]
[1748750365140,15.86194279,154.73,154.68,15.86389439]
[1748750371252,10.2,154.76,154.7,9.39896128]
[1748750371574,19.59896128,154.76,154.71,9.39896128]
[1748750371751,15.85986151,154.78,154.73,9.39896128]
[1748750371954,15.85986151,154.78,154.69,26.0]
[1748750371955,9.39896128,154.78,154.74,9.39896128]
[1748750372869,9.39896128,154.78,154.73,9.39896128]
[1748750373069,9.39896128,154.78,154.73,15.8616745]
[1748750374177,15.85977088,154.78,154.73,15.8616745]
[1748750380774,9.39896128,154.77,154.73,15.8616745]
[1748750387662,15.86022243,154.77,154.73,9.39896128]
[1748750388486,9.39896128,154.77,154.73,9.39896128]
[1748750390069,15.86026777,154.77,154.73,9.39896128]
[1748750391281,9.39896128,154.77,154.73,9.39896128]
[1748750394571,6.46094829,154.78,154.73,15.86174456]
[1748750394789,15.85990957,154.78,154.74,9.39896128]
[1748750398179,15.85990957,154.78,154.73,9.39896128]
[1748750399093,15.85990957,154.78,154.72,6.4631338]
[1748750399390,15.85990957,154.78,154.73,9.39896128]
[1748750402310,9.39896128,154.78,154.73,15.86166022]
[1748750402507,15.85975551,154.78,154.74,9.39896128]
[1748750402688,9.39896128,154.78,154.74,9.39896128]
[1748750403514,7.98751447,154.81,154.76,9.39896128]
[1748750403676,9.39896128,154.84,154.79,9.39896128]
[1748750404018,9.39896128,154.81,154.77,9.39896128]
[1748750404376,15.8587869,154.81,154.76,26.0]
[1748750404597,9.39896128,154.8,154.76,9.39896128]
[1748750404771,9.39896128,154.78,154.74,45.57896128]
[1748750406007,9.39896128,154.79,154.74,45.57896128]
[1748750406301,6.46078304,154.78,154.74,45.57896128]
[1748750407884,6.46036565,154.79,154.74,45.57896128]
[1748750408203,9.39896128,154.82,154.77,9.39896128]
[1748750408508,9.39896128,154.83,154.79,9.39896128]
[1748750408679,15.85765791,154.83,154.79,9.39896128]
[1748750409509,15.85765791,154.83,154.74,58.79838823]
[1748750409718,15.85765791,154.83,154.78,9.39896128]
[1748750410716,21.14240312,154.83,154.78,14.68370649]
[1748750413014,14.68370649,154.82,154.78,14.68370649]
[1748750413211,14.68370649,154.82,154.75,18.64964886]
[1748750413416,14.68370649,154.82,154.78,14.68370649]
[1748750413827,14.68370649,154.81,154.75,6.46203554]
[1748750413998,14.68370649,154.79,154.75,14.68370649]
[1748750415000,21.14441878,154.79,154.75,14.68370649]
[1748750415502,21.14441878,154.79,154.74,130.28370649]
[1748750416399,21.14441878,154.79,154.74,40.68370649]
[1748750417330,14.68370649,154.78,154.74,40.68370649]
[1748750418117,14.68370649,154.77,154.74,26.0]
[1748750418515,14.68370649,154.77,154.73,14.68370649]
[1748750419232,6.46161798,154.76,154.72,40.68370649]
[1748750419404,21.14532447,154.76,154.71,24.86370649]
[1748750419607,21.14532447,154.76,154.71,50.86370649]
[1748750421818,21.14532447,154.76,154.72,14.68370649]
[1748750422334,6.46127273,154.77,154.73,14.68370649]
[1748750428055,14.68370649,154.79,154.75,14.68370649]
[1748750429036,21.14420455,154.79,154.75,14.68370649]
[1748750429419,14.68370649,154.78,154.74,14.68370649]
[1748750433358,14.68370649,154.76,154.71,57.32719259]
[1748750433554,14.68370649,154.76,154.72,14.68370649]
[1748750434075,14.68370649,154.77,154.72,14.68370649]
[1748750434670,21.1453002,154.77,154.72,14.68370649]
[1748750435370,14.68370649,154.76,154.72,14.68370649]
[1748750437278,21.14553865,154.76,154.72,14.68370649]
[1748750438654,15.86693892,154.76,154.72,9.40510676]
[1748750441184,6.46183216,154.76,154.72,9.40510676]
[1748750442587,0.28432314,154.78,154.72,9.40510676]
[1748750442772,9.40510676,154.77,154.72,9.40510676]
[1748750444392,9.40510676,154.76,154.71,26.0]
[1748750444764,9.40510676,154.76,154.71,35.40510676]
[1748750448978,6.46203554,154.75,154.71,35.40510676]
[1748750449608,15.8671423,154.75,154.71,26.0]
[1748750449900,9.40510676,154.73,154.69,10.18]
[1748750450076,9.40510676,154.73,154.68,35.40510676]
[1748750450879,6.46328852,154.72,154.68,35.40510676]
[1748750451794,15.86839528,154.72,154.67,9.40510676]
[1748750452094,15.86839528,154.72,154.67,35.40510676]
[1748750453178,9.40510676,154.71,154.67,35.40510676]
[1748750454198,9.40510676,154.71,154.67,41.87027013]
[1748750455868,9.40510676,154.72,154.67,41.87027013]
[1748750456493,9.40510676,154.72,154.68,9.40510676]
[1748750457399,9.40510676,154.73,154.69,6.46454198]
[1748750458671,9.40510676,154.73,154.69,15.86964874]
[1748750458970,9.40510676,154.78,154.72,9.40510676]
[1748750459165,9.40510676,154.78,154.7,26.0]
[1748750459166,16.63994832,154.8,154.75,9.40510676]
[1748750459379,16.63994832,154.8,154.7,36.18]
[1748750459380,10.18,154.8,154.76,9.40510676]
[1748750459673,9.40510676,154.82,154.77,9.40510676]
[1748750460605,9.40510676,154.82,154.78,9.40510676]
[1748750460774,17.39357276,154.83,154.79,15.86547241]
[1748750461091,103.2,154.88,154.81,9.40510676]
[1748750461394,9.40510676,154.85,154.8,9.40510676]
[1748750461801,9.40510676,154.84,154.8,9.40510676]
[1748750462008,9.40510676,154.84,154.79,9.40510676]
[1748750462174,9.40510676,154.81,154.77,41.86630725]
[1748750462375,9.40510676,154.8,154.75,45.58510676]
[1748750462683,0.28432314,154.83,154.75,50.86962976]
[1748750462684,14.68962976,154.79,154.75,50.86962976]
[1748750463097,14.68962976,154.8,154.76,14.68962976]
[1748750463500,14.68962976,154.79,154.75,50.86962976]
[1748750463698,0.28432314,154.83,154.75,26.0]
[1748750463699,14.68962976,154.78,154.75,26.0]
[1748750463903,14.68962976,154.77,154.73,14.68962976]
[1748750464212,21.15112274,154.77,154.72,14.68962976]
[1748750465112,6.46149298,154.77,154.72,40.68962976]
[1748750465319,21.15112274,154.77,154.73,14.68962976]
[1748750466224,14.68962976,154.78,154.74,14.68962976]
[1748750467198,14.68962976,154.79,154.75,14.68962976]
[1748750467523,14.68962976,154.8,154.75,14.68962976]
[1748750467735,14.68962976,154.8,154.76,14.68962976]
[1748750468934,21.14963282,154.8,154.76,14.68962976]
[1748750469095,14.68962976,154.79,154.74,14.68962976]
[1748750469500,14.68962976,154.79,154.74,47.1520368]
[1748750470911,21.15022658,154.79,154.74,40.68962976]
[1748750472207,14.68962976,154.78,154.74,40.68962976]
[1748750473625,21.15014731,154.79,154.74,40.68962976]
[1748750475105,14.68962976,154.75,154.71,104.28962976]
[1748750475307,21.15176711,154.75,154.71,104.28962976]
[1748750475506,14.68962976,154.75,154.71,14.68962976]
[1748750477006,14.68962976,154.75,154.7,32.46400826]
[1748750477007,21.15171832,154.75,154.7,40.68962976]
[1748750477204,14.68962976,154.73,154.7,26.0]
[1748750478216,21.15267657,154.73,154.7,26.0]
[1748750481914,14.68962976,154.73,154.7,26.0]
[1748750482637,14.68962976,154.72,154.69,10.18]
[1748750482821,14.68962976,154.72,154.68,47.15453011]
[1748750483137,14.68962976,154.73,154.68,47.15453011]
[1748750486134,14.68962976,154.74,154.7,14.68962976]
[1748750486342,14.68962976,154.75,154.7,14.68962976]
[1748750487538,14.68962976,154.75,154.7,21.15337272]
[1748750488125,14.68962976,154.74,154.7,21.15337272]
[1748750488617,14.68962976,154.74,154.69,21.15408669]
[1748750488925,14.68962976,154.73,154.69,21.15408669]
[1748750489124,14.68962976,154.73,154.69,14.68962976]
[1748750489522,21.15257467,154.73,154.69,14.68962976]
[1748750489936,21.15257467,154.73,154.68,47.15448862]
[1748750491514,0.28432314,154.75,154.67,89.6]
[1748750491515,14.68962976,154.7,154.67,89.6]
[1748750491718,14.68962976,154.7,154.66,26.0]
[1748750492933,14.68962976,154.71,154.66,40.68962976]
[1748750493132,14.68962976,154.71,154.67,14.68962976]
[1748750494025,14.68962976,154.71,154.67,21.1549444]
[1748750495027,14.68962976,154.72,154.68,14.68962976]
[1748750495220,14.68962976,154.72,154.68,21.15433885]
[1748750496027,16.15393755,154.77,154.69,14.68962976]
[1748750496339,14.68962976,154.74,154.69,14.68962976]
[1748750497325,14.68962976,154.73,154.69,21.15381878]
[1748750498043,14.68962976,154.73,154.69,6.46418902]
[1748750498639,14.68962976,154.71,154.67,6.4653779]
[1748750499142,14.68962976,154.71,154.67,21.15500766]
[1748750504057,14.68962976,154.73,154.69,14.68962976]
[1748750505334,21.15250244,154.73,154.68,14.68962976]
[1748750506343,21.15250244,154.73,154.68,21.15440509]
[1748750506541,14.68962976,154.72,154.68,21.15440509]
[1748750507259,14.68962976,154.72,154.68,6.46477533]
[1748750508749,14.68962976,154.71,154.68,6.46477533]
[1748750509255,14.68962976,154.72,154.68,6.46477533]
[1748750509437,6.46245314,154.74,154.68,6.46477533]
[1748750509752,14.68962976,154.72,154.68,6.46477533]
[1748750515963,14.68962976,154.73,154.68,21.15440509]
[1748750516569,14.68962976,154.75,154.7,14.68962976]
[1748750516769,14.68962976,154.77,154.73,14.68962976]
[1748750517065,14.68962976,154.79,154.74,14.68962976]
[1748750517440,10.18,154.82,154.76,14.68962976]
[1748750517655,6.45827951,154.84,154.73,26.0]
[1748750517842,14.68962976,154.79,154.75,14.68962976]
[1748750518545,14.68962976,154.79,154.74,21.15171947]
[1748750521840,14.68962976,154.79,154.7,96.0395]
[1748750521841,14.68962976,154.77,154.7,96.0395]
[1748750522159,14.68962976,154.76,154.72,14.68962976]
[1748750523042,14.68962976,154.77,154.73,14.68962976]
[1748750523446,14.68962976,154.77,154.72,6.46307725]
[1748750523648,14.68962976,154.77,154.73,14.68962976]
[1748750525863,8.05941705,154.79,154.73,14.68962976]
[1748750526064,14.68962976,154.77,154.73,14.68962976]
[1748750527073,1.5989,154.79,154.76,14.68962976]
[1748750527272,16.63962692,154.81,154.76,14.68962976]
[1748750527273,14.68962976,154.8,154.76,14.68962976]
[1748750527570,14.68962976,154.8,154.75,14.68962976]
[1748750527783,14.68962976,154.79,154.75,14.68962976]
[1748750529167,14.68962976,154.77,154.73,26.0]
[1748750530267,21.15094099,154.77,154.73,26.0]
[1748750531283,14.68962976,154.76,154.72,14.68962976]
[1748750531439,16.14707506,154.83,154.75,26.0]
[1748750531641,14.68962976,154.78,154.75,26.0]
[1748750532067,14.68962976,154.78,154.73,14.68962976]
[1748750532274,14.68962976,154.78,154.73,40.68962976]
[1748750532759,14.68962976,154.78,154.73,47.15209365]
[1748750534673,0.28432314,154.82,154.73,47.15209365]